Workbook

Sheet Rohdaten
A1: YEARMODA | B1: TEMP
A2: 19820401 | B2: 30.5 | C2: =(B2-32)*5/9 -> -0.8333333333 | D2: =RIGHT(A2,2) & "." & MID(A2,5,2) & "." & LEFT(A2,4) -> 01.04.1982
A3: 19820402 | B3: 33.7 | C3: =(B3-32)*5/9 -> 0.9444444444 | D3: =RIGHT(A3,2) & "." & MID(A3,5,2) & "." & LEFT(A3,4) -> 02.04.1982
A4: 19820403 | B4: 36.9 | C4: 2.722222222 | D4: 03.04.1982
A5: 19820404 | B5: 39.3 | C5: 4.055555556 | D5: 04.04.1982
A6: 19820405 | B6: 37.5 | C6: 3.055555556 | D6: 05.04.1982
A7: 19820406 | B7: 38.3 | C7: 3.5 | D7: 06.04.1982
A8: 19820407 | B8: 38.8 | C8: 3.777777778 | D8: 07.04.1982
A9: 19820408 | B9: 37.8 | C9: 3.222222222 | D9: 08.04.1982
A10: 19820409 | B10: 34.9 | C10: 1.611111111 | D10: 09.04.1982
A11: 19820410 | B11: 31.5 | C11: -0.2777777778 | D11: 10.04.1982
A12: 19820411 | B12: 31.4 | C12: -0.3333333333 | D12: 11.04.1982
A13: 19820412 | B13: 32.6 | C13: 0.3333333333 | D13: 12.04.1982
A14: 19820413 | B14: 27 | C14: -2.777777778 | D14: 13.04.1982
A15: 19820414 | B15: 25.2 | C15: -3.777777778 | D15: 14.04.1982
A16: 19820415 | B16: 28.5 | C16: -1.944444444 | D16: 15.04.1982
A17: 19820416 | B17: 32.2 | C17: 0.1111111111 | D17: 16.04.1982
A18: 19820417 | B18: 38.1 | C18: 3.388888889 | D18: 17.04.1982
A19: 19820418 | B19: 36.8 | C19: 2.666666667 | D19: 18.04.1982
A20: 19820419 | B20: 34.8 | C20: 1.555555556 | D20: 19.04.1982
A21: 19820420 | B21: 30.2 | C21: -1 | D21: 20.04.1982
A22: 19820421 | B22: 32.6 | C22: 0.3333333333 | D22: 21.04.1982
A23: 19820422 | B23: 33.6 | C23: 0.8888888889 | D23: 22.04.1982
A24: 19820423 | B24: 34.8 | C24: 1.555555556 | D24: 23.04.1982
A25: 19820424 | B25: 28.3 | C25: -2.055555556 | D25: 24.04.1982
A26: 19820425 | B26: 30.6 | C26: -0.7777777778 | D26: 25.04.1982
A27: 19820426 | B27: 34.9 | C27: 1.611111111 | D27: 26.04.1982
A28: 19820427 | B28: 33.9 | C28: 1.055555556 | D28: 27.04.1982
A29: 19820428 | B29: 34.5 | C29: 1.388888889 | D29: 28.04.1982
A30: 19820429 | B30: 35.7 | C30: 2.055555556 | D30: 29.04.1982
A31: 19820430 | B31: 28.6 | C31: -1.888888889 | D31: 30.04.1982
A32: 19820501 | B32: 33.1 | C32: 0.6111111111 | D32: 01.05.1982
A33: 19820502 | B33: 37.6 | C33: 3.111111111 | D33: 02.05.1982
A34: 19820503 | B34: 36 | C34: 2.222222222 | D34: 03.05.1982
A35: 19820504 | B35: 36 | C35: 2.222222222 | D35: 04.05.1982
A36: 19820505 | B36: 34.7 | C36: 1.5 | D36: 05.05.1982
A37: 19820506 | B37: 35.2 | C37: 1.777777778 | D37: 06.05.1982
A38: 19820507 | B38: 29.5 | C38: -1.388888889 | D38: 07.05.1982
A39: 19820508 | B39: 31.3 | C39: -0.3888888889 | D39: 08.05.1982
A40: 19820509 | B40: 35.5 | C40: 1.944444444 | D40: 09.05.1982
A41: 19820510 | B41: 36.6 | C41: 2.555555556 | D41: 10.05.1982
A42: 19820511 | B42: 38 | C42: 3.333333333 | D42: 11.05.1982
A43: 19820512 | B43: 41.6 | C43: 5.333333333 | D43: 12.05.1982
A44: 19820513 | B44: 44.2 | C44: 6.777777778 | D44: 13.05.1982
A45: 19820514 | B45: 45.1 | C45: 7.277777778 | D45: 14.05.1982
A46: 19820515 | B46: 44.7 | C46: 7.055555556 | D46: 15.05.1982
A47: 19820516 | B47: 46.2 | C47: 7.888888889 | D47: 16.05.1982
A48: 19820517 | B48: 45 | C48: 7.222222222 | D48: 17.05.1982
A49: 19820518 | B49: 44.2 | C49: 6.777777778 | D49: 18.05.1982
A50: 19820519 | B50: 49.3 | C50: 9.611111111 | D50: 19.05.1982
A51: 19820520 | B51: 45.5 | C51: 7.5 | D51: 20.05.1982
A52: 19820521 | B52: 49 | C52: 9.444444444 | D52: 21.05.1982
A53: 19820522 | B53: 45 | C53: 7.222222222 | D53: 22.05.1982
A54: 19820523 | B54: 43.2 | C54: 6.222222222 | D54: 23.05.1982
A55: 19820524 | B55: 40.7 | C55: 4.833333333 | D55: 24.05.1982
A56: 19820525 | B56: 43.5 | C56: 6.388888889 | D56: 25.05.1982
A57: 19820526 | B57: 47.5 | C57: 8.611111111 | D57: 26.05.1982
A58: 19820527 | B58: 48.3 | C58: 9.055555556 | D58: 27.05.1982
A59: 19820528 | B59: 50.1 | C59: 10.05555556 | D59: 28.05.1982
A60: 19820529 | B60: 52.2 | C60: 11.22222222 | D60: 29.05.1982
A61: 19820530 | B61: 50.3 | C61: 10.16666667 | D61: 30.05.1982
A62: 19820531 | B62: 49.3 | C62: 9.611111111 | D62: 31.05.1982
A63: 19820601 | B63: 54.2 | C63: 12.33333333 | D63: 01.06.1982
A64: 19820602 | B64: 50.8 | C64: 10.44444444 | D64: 02.06.1982
A65: 19820603 | B65: 54.2 | C65: 12.33333333 | D65: 03.06.1982
A66: 19820604 | B66: 50.8 | C66: 10.44444444 | D66: 04.06.1982
A67: 19820605 | B67: 51.8 | C67: =(B67-32)*5/9 -> 11 | D67: =RIGHT(A67,2) & "." & MID(A67,5,2) & "." & LEFT(A67,4) -> 05.06.1982
A68: 19820606 | B68: 53.4 | C68: 11.88888889 | D68: 06.06.1982
A69: 19820607 | B69: 56.5 | C69: 13.61111111 | D69: 07.06.1982
A70: 19820608 | B70: 54.4 | C70: 12.44444444 | D70: 08.06.1982
A71: 19820609 | B71: 52.5 | C71: 11.38888889 | D71: 09.06.1982
A72: 19820610 | B72: 56.5 | C72: 13.61111111 | D72: 10.06.1982
A73: 19820611 | B73: 46.8 | C73: 8.222222222 | D73: 11.06.1982
A74: 19820612 | B74: 44 | C74: 6.666666667 | D74: 12.06.1982
A75: 19820613 | B75: 41.5 | C75: 5.277777778 | D75: 13.06.1982
A76: 19820614 | B76: 43.4 | C76: 6.333333333 | D76: 14.06.1982
A77: 19820615 | B77: 45.4 | C77: 7.444444444 | D77: 15.06.1982
A78: 19820616 | B78: 46.1 | C78: 7.833333333 | D78: 16.06.1982
A79: 19820617 | B79: 54.8 | C79: 12.66666667 | D79: 17.06.1982
A80: 19820618 | B80: 51.6 | C80: 10.88888889 | D80: 18.06.1982
A81: 19820619 | B81: 50.9 | C81: 10.5 | D81: 19.06.1982
A82: 19820620 | B82: 52.3 | C82: 11.27777778 | D82: 20.06.1982
A83: 19820621 | B83: 51.2 | C83: 10.66666667 | D83: 21.06.1982
A84: 19820622 | B84: 54.4 | C84: 12.44444444 | D84: 22.06.1982
A85: 19820623 | B85: 50 | C85: 10 | D85: 23.06.1982
A86: 19820624 | B86: 52.9 | C86: 11.61111111 | D86: 24.06.1982
A87: 19820625 | B87: 53.4 | C87: 11.88888889 | D87: 25.06.1982
A88: 19820626 | B88: 53.4 | C88: 11.88888889 | D88: 26.06.1982
A89: 19820627 | B89: 47.7 | C89: 8.722222222 | D89: 27.06.1982
A90: 19820628 | B90: 49.8 | C90: 9.888888889 | D90: 28.06.1982
A91: 19820629 | B91: 51.6 | C91: 10.88888889 | D91: 29.06.1982
A92: 19820630 | B92: 51.2 | C92: 10.66666667 | D92: 30.06.1982
A93: 19820701 | B93: 52.7 | C93: 11.5 | D93: 01.07.1982
A94: 19820702 | B94: 54 | C94: 12.22222222 | D94: 02.07.1982
A95: 19820703 | B95: 54.7 | C95: 12.61111111 | D95: 03.07.1982
A96: 19820704 | B96: 55.5 | C96: 13.05555556 | D96: 04.07.1982
A97: 19820705 | B97: 56.8 | C97: 13.77777778 | D97: 05.07.1982
A98: 19820706 | B98: 64.4 | C98: 18 | D98: 06.07.1982
A99: 19820707 | B99: 62.6 | C99: 17 | D99: 07.07.1982
A100: 19820708 | B100: 61.4 | C100: 16.33333333 | D100: 08.07.1982
A101: 19820709 | B101: 58.5 | C101: 14.72222222 | D101: 09.07.1982
A102: 19820710 | B102: 65.9 | C102: 18.83333333 | D102: 10.07.1982
A103: 19820711 | B103: 64.7 | C103: 18.16666667 | D103: 11.07.1982
A104: 19820712 | B104: 61.4 | C104: 16.33333333 | D104: 12.07.1982
A105: 19820713 | B105: 59 | C105: 15 | D105: 13.07.1982
A106: 19820714 | B106: 56.2 | C106: 13.44444444 | D106: 14.07.1982
A107: 19820715 | B107: 58.3 | C107: 14.61111111 | D107: 15.07.1982
A108: 19820716 | B108: 59.5 | C108: 15.27777778 | D108: 16.07.1982
A109: 19820717 | B109: 58.5 | C109: 14.72222222 | D109: 17.07.1982
A110: 19820718 | B110: 56.9 | C110: 13.83333333 | D110: 18.07.1982
A111: 19820719 | B111: 54.7 | C111: 12.61111111 | D111: 19.07.1982
A112: 19820720 | B112: 54.2 | C112: 12.33333333 | D112: 20.07.1982
A113: 19820721 | B113: 58.3 | C113: 14.61111111 | D113: 21.07.1982
A114: 19820722 | B114: 57.6 | C114: 14.22222222 | D114: 22.07.1982
A115: 19820723 | B115: 55.5 | C115: 13.05555556 | D115: 23.07.1982
A116: 19820724 | B116: 49.6 | C116: 9.777777778 | D116: 24.07.1982
A117: 19820725 | B117: 51.7 | C117: 10.94444444 | D117: 25.07.1982
A118: 19820726 | B118: 51.6 | C118: 10.88888889 | D118: 26.07.1982
A119: 19820727 | B119: 49.3 | C119: 9.611111111 | D119: 27.07.1982
A120: 19820728 | B120: 43.8 | C120: 6.555555556 | D120: 28.07.1982
A121: 19820729 | B121: 50.4 | C121: 10.22222222 | D121: 29.07.1982
A122: 19820730 | B122: 53.9 | C122: 12.16666667 | D122: 30.07.1982
A123: 19820731 | B123: 48.4 | C123: 9.111111111 | D123: 31.07.1982
A124: 19820801 | B124: 54.5 | C124: 12.5 | D124: 01.08.1982
A125: 19820802 | B125: 53.3 | C125: 11.83333333 | D125: 02.08.1982
A126: 19820803 | B126: 49.3 | C126: 9.611111111 | D126: 03.08.1982
A127: 19820804 | B127: 51.3 | C127: 10.72222222 | D127: 04.08.1982
A128: 19820805 | B128: 55.7 | C128: 13.16666667 | D128: 05.08.1982
A129: 19820806 | B129: 48.7 | C129: 9.277777778 | D129: 06.08.1982
A130: 19820807 | B130: 50.8 | C130: 10.44444444 | D130: 07.08.1982
A131: 19820808 | B131: 53.1 | C131: =(B131-32)*5/9 -> 11.72222222 | D131: =RIGHT(A131,2) & "." & MID(A131,5,2) & "." & LEFT(A131,4) -> 08.08.1982
A132: 19820809 | B132: 55.2 | C132: 12.88888889 | D132: 09.08.1982
A133: 19820810 | B133: 56.6 | C133: 13.66666667 | D133: 10.08.1982
A134: 19820811 | B134: 55.8 | C134: 13.22222222 | D134: 11.08.1982
A135: 19820812 | B135: 57.5 | C135: 14.16666667 | D135: 12.08.1982
A136: 19820813 | B136: 55.3 | C136: 12.94444444 | D136: 13.08.1982
A137: 19820814 | B137: 55.8 | C137: 13.22222222 | D137: 14.08.1982
A138: 19820815 | B138: 54.2 | C138: 12.33333333 | D138: 15.08.1982
A139: 19820816 | B139: 57.1 | C139: 13.94444444 | D139: 16.08.1982
A140: 19820817 | B140: 53 | C140: 11.66666667 | D140: 17.08.1982
A141: 19820818 | B141: 54.2 | C141: 12.33333333 | D141: 18.08.1982
A142: 19820819 | B142: 52.8 | C142: 11.55555556 | D142: 19.08.1982
A143: 19820820 | B143: 50.4 | C143: 10.22222222 | D143: 20.08.1982
A144: 19820821 | B144: 44.6 | C144: 7 | D144: 21.08.1982
A145: 19820822 | B145: 45.8 | C145: 7.666666667 | D145: 22.08.1982
A146: 19820823 | B146: 46.7 | C146: 8.166666667 | D146: 23.08.1982
A147: 19820824 | B147: 48.2 | C147: 9 | D147: 24.08.1982
A148: 19820825 | B148: 49.8 | C148: 9.888888889 | D148: 25.08.1982
A149: 19820826 | B149: 47.9 | C149: 8.833333333 | D149: 26.08.1982
A150: 19820827 | B150: 48.3 | C150: 9.055555556 | D150: 27.08.1982
A151: 19820828 | B151: 47.1 | C151: 8.388888889 | D151: 28.08.1982
A152: 19820829 | B152: 51.9 | C152: 11.05555556 | D152: 29.08.1982
A153: 19820830 | B153: 50.9 | C153: 10.5 | D153: 30.08.1982
A154: 19820831 | B154: 45.1 | C154: 7.277777778 | D154: 31.08.1982
A155: 19820901 | B155: 45.1 | C155: 7.277777778 | D155: 01.09.1982
A156: 19820902 | B156: 51 | C156: 10.55555556 | D156: 02.09.1982
A157: 19820903 | B157: 53.9 | C157: 12.16666667 | D157: 03.09.1982
A158: 19820904 | B158: 55.3 | C158: 12.94444444 | D158: 04.09.1982
A159: 19820905 | B159: 55.3 | C159: 12.94444444 | D159: 05.09.1982
A160: 19820906 | B160: 47.9 | C160: 8.833333333 | D160: 06.09.1982
A161: 19820907 | B161: 44.8 | C161: 7.111111111 | D161: 07.09.1982
A162: 19820908 | B162: 50.3 | C162: 10.16666667 | D162: 08.09.1982
A163: 19820909 | B163: 51.1 | C163: 10.61111111 | D163: 09.09.1982
A164: 19820910 | B164: 51.7 | C164: 10.94444444 | D164: 10.09.1982
A165: 19820911 | B165: 55.4 | C165: 13 | D165: 11.09.1982
A166: 19820912 | B166: 54.5 | C166: 12.5 | D166: 12.09.1982
A167: 19820913 | B167: 52.4 | C167: 11.33333333 | D167: 13.09.1982
A168: 19820914 | B168: 52.8 | C168: 11.55555556 | D168: 14.09.1982
A169: 19820915 | B169: 53.3 | C169: 11.83333333 | D169: 15.09.1982
A170: 19820916 | B170: 52.2 | C170: 11.22222222 | D170: 16.09.1982
A171: 19820917 | B171: 50.6 | C171: 10.33333333 | D171: 17.09.1982
A172: 19820918 | B172: 48.7 | C172: 9.277777778 | D172: 18.09.1982
A173: 19820919 | B173: 49.3 | C173: 9.611111111 | D173: 19.09.1982
A174: 19820920 | B174: 50.8 | C174: 10.44444444 | D174: 20.09.1982
A175: 19820921 | B175: 50 | C175: 10 | D175: 21.09.1982
A176: 19820922 | B176: 47.8 | C176: 8.777777778 | D176: 22.09.1982
A177: 19820923 | B177: 46.9 | C177: 8.277777778 | D177: 23.09.1982
A178: 19820924 | B178: 44.8 | C178: 7.111111111 | D178: 24.09.1982
A179: 19820925 | B179: 45.6 | C179: 7.555555556 | D179: 25.09.1982
A180: 19820926 | B180: 48 | C180: 8.888888889 | D180: 26.09.1982
A181: 19820927 | B181: 46.6 | C181: 8.111111111 | D181: 27.09.1982
A182: 19820928 | B182: 44.1 | C182: 6.722222222 | D182: 28.09.1982
A183: 19820929 | B183: 44.6 | C183: 7 | D183: 29.09.1982
A184: 19820930 | B184: 43.7 | C184: 6.5 | D184: 30.09.1982
A185: 19821001 | B185: 44.7 | C185: 7.055555556 | D185: 01.10.1982
A186: 19821002 | B186: 44.8 | C186: 7.111111111 | D186: 02.10.1982
A187: 19821003 | B187: 47.2 | C187: 8.444444444 | D187: 03.10.1982
A188: 19821004 | B188: 43.3 | C188: 6.277777778 | D188: 04.10.1982
A189: 19821005 | B189: 33.9 | C189: 1.055555556 | D189: 05.10.1982
A190: 19821006 | B190: 33.3 | C190: 0.7222222222 | D190: 06.10.1982
A191: 19821007 | B191: 32 | C191: 0 | D191: 07.10.1982
A192: 19821008 | B192: 34.1 | C192: 1.166666667 | D192: 08.10.1982
A193: 19821009 | B193: 36.6 | C193: 2.555555556 | D193: 09.10.1982
A194: 19821010 | B194: 33.6 | C194: 0.8888888889 | D194: 10.10.1982
A195: 19821011 | B195: 34 | C195: =(B195-32)*5/9 -> 1.111111111 | D195: =RIGHT(A195,2) & "." & MID(A195,5,2) & "." & LEFT(A195,4) -> 11.10.1982
A196: 19821012 | B196: 37.7 | C196: 3.166666667 | D196: 12.10.1982
A197: 19821013 | B197: 35.8 | C197: 2.111111111 | D197: 13.10.1982
A198: 19821014 | B198: 39 | C198: 3.888888889 | D198: 14.10.1982
A199: 19821015 | B199: 36.5 | C199: 2.5 | D199: 15.10.1982
A200: 19821016 | B200: 33.2 | C200: 0.6666666667 | D200: 16.10.1982
... 13132 more rows

Sheet Diagrame

Sheet Monatsmittel
B2: 01.05.1982 | C2: 0.8055555556
B3: 01.06.1982 | C3: 5.670250896
B4: 01.07.1982 | C4: 10.50925926
B5: 01.08.1982 | C5: 13.40501792
B6: 01.09.1982 | C6: 10.91218638
B7: 01.10.1982 | C7: 9.787037037
B8: 01.11.1982 | C8: 3.41218638
B9: 01.12.1982 | C9: 0.5740740741
B10: 01.01.1983 | C10: -3.184587814
B11: 01.02.1983 | C11: -0.1953405018
B12: 01.03.1983 | C12: -6.361111111
B13: 01.04.1983 | C13: 0.09856630824
B14: 01.05.1983 | C14: 0.8203703704
B15: 01.06.1983 | C15: 3.539426523
B16: 01.07.1983 | C16: 9.794444444
B17: 01.08.1983 | C17: 15.00537634
B18: 01.09.1983 | C18: 11.0734767
B19: 01.10.1983 | C19: 8.998084291
B20: 01.11.1983 | C20: 5.501792115
B21: 01.12.1983 | C21: 0.1388888889
B22: 01.01.1984 | C22: -3.146953405
B23: 01.02.1984 | C23: -5.453405018
B24: 01.03.1984 | C24: -6.22605364
B25: 01.04.1984 | C25: -3.797491039
B26: 01.05.1984 | C26: -0.04814814815
B27: 01.06.1984 | C27: 2.055555556
B28: 01.07.1984 | C28: 8.138888889
B29: 01.08.1984 | C29: 11.49641577
B30: 01.09.1984 | C30: 10.56989247
B31: 01.10.1984 | C31: 6.474074074
B32: 01.11.1984 | C32: 4.661290323
B33: 01.12.1984 | C33: 0.3388888889
B34: 01.01.1985 | C34: -2.625925926
B35: 01.02.1985 | C35: -8.838709677
B36: 01.03.1985 | C36: -2.875
B37: 01.04.1985 | C37: -3.551971326
B38: 01.05.1985 | C38: 1.153703704
B39: 01.06.1985 | C39: 4.713261649
B40: 01.07.1985 | C40: 7.831481481
B41: 01.08.1985 | C41: 12.65232975
B42: 01.09.1985 | C42: 11.05555556
B43: 01.10.1985 | C43: 10.86851852
B44: 01.11.1985 | C44: 5.46953405
B45: 01.12.1985 | C45: -3.557407407
B46: 01.01.1986 | C46: -0.8817204301
B47: 01.02.1986 | C47: -5.867383513
B48: 01.03.1986 | C48: -8.589285714
B49: 01.04.1986 | C49: -1.580645161
B50: 01.05.1986 | C50: -0.4814814815
B51: 01.06.1986 | C51: 5.64874552
B52: 01.07.1986 | C52: 9.75
B53: 01.08.1986 | C53: 11.36200717
B54: 01.09.1986 | C54: 10.64336918
B55: 01.10.1986 | C55: 9.062962963
B56: 01.11.1986 | C56: 5.720430108
B57: 01.12.1986 | C57: 0.8722222222
B58: 01.01.1987 | C58: -3.193548387
B59: 01.02.1987 | C59: -5.903225806
B60: 01.03.1987 | C60: -3.218253968
B61: 01.04.1987 | C61: -4.522222222
B62: 01.05.1987 | C62: 2.248148148
B63: 01.06.1987 | C63: 3.964157706
B64: 01.07.1987 | C64: 8.105555556
B65: 01.08.1987 | C65: 12.32078853
B66: 01.09.1987 | C66: 12.03225806
B67: 01.10.1987 | C67: 11.4
B68: 01.11.1987 | C68: 4.85483871
B69: 01.12.1987 | C69: 0.6333333333
B70: 01.01.1988 | C70: 0.7096774194
B71: 01.02.1988 | C71: -2.535842294
B72: 01.03.1988 | C72: -4.530651341
B73: 01.04.1988 | C73: -2.602150538
B74: 01.05.1988 | C74: 2.483333333
B75: 01.06.1988 | C75: 6.430107527
B76: 01.07.1988 | C76: 8.966666667
B77: 01.08.1988 | C77: 12.79390681
B78: 01.09.1988 | C78: 12.12544803
B79: 01.10.1988 | C79: 9.044444444
B80: 01.11.1988 | C80: 6.152329749
B81: 01.12.1988 | C81: -0.5907407407
B82: 01.01.1989 | C82: -0.5
B83: 01.02.1989 | C83: -0.4229390681
B84: 01.03.1989 | C84: -0.5119047619
B85: 01.04.1989 | C85: 1.188172043
B86: 01.05.1989 | C86: 0.7851851852
B87: 01.06.1989 | C87: 6.664874552
B88: 01.07.1989 | C88: 9.162962963
B89: 01.08.1989 | C89: 12.87275986
B90: 01.09.1989 | C90: 12.25806452
B91: 01.10.1989 | C91: 8.694444444
B92: 01.11.1989 | C92: 5.654121864
B93: 01.12.1989 | C93: -0.1518518519
B94: 01.01.1990 | C94: -2.172043011
B95: 01.02.1990 | C95: -1.960573477
B96: 01.03.1990 | C96: -0.8055555556
B97: 01.04.1990 | C97: 1.858422939
B98: 01.05.1990 | C98: 1.207407407
B99: 01.06.1990 | C99: 7.749103943
B100: 01.07.1990 | C100: 9.316666667
B101: 01.08.1990 | C101: 13.26523297
B102: 01.09.1990 | C102: 12.4874552
B103: 01.10.1990 | C103: 8.503703704
B104: 01.11.1990 | C104: 5.476702509
B105: 01.12.1990 | C105: -0.4759259259
B106: 01.01.1991 | C106: -5.646953405
B107: 01.02.1991 | C107: -3.455197133
B108: 01.03.1991 | C108: -5.841269841
B109: 01.04.1991 | C109: 0.976702509
B110: 01.05.1991 | C110: 0.4240740741
B111: 01.06.1991 | C111: 3.551971326
B112: 01.07.1991 | C112: 8.785185185
B113: 01.08.1991 | C113: 13.85185185
B114: 01.09.1991 | C114: 14.38888889
B115: 01.10.1991 | C115: 10.81296296
B116: 01.11.1991 | C116: 3.207885305
B117: 01.12.1991 | C117: -1.318518519
B118: 01.01.1992 | C118: -2.92037037
B119: 01.02.1992 | C119: -1.32437276
B120: 01.03.1992 | C120: -1.831417625
B121: 01.04.1992 | C121: -0.02867383513
B122: 01.05.1992 | C122: 1.7
B123: 01.06.1992 | C123: 7.91218638
B124: 01.07.1992 | C124: 9.107407407
B125: 01.08.1992 | C125: 13.05913978
B126: 01.09.1992 | C126: 14.65925926
B127: 01.10.1992 | C127: 8.275720165
B128: 01.11.1992 | C128: 2.422939068
B129: 01.12.1992 | C129: 2.227777778
B130: 01.01.1993 | C130: -3.087037037
B131: 01.02.1993 | C131: -1.078853047
B132: 01.03.1993 | C132: -2.58531746
B133: 01.04.1993 | C133: -1.564516129
B134: 01.05.1993 | C134: 2.666666667
B135: 01.06.1993 | C135: 7.338709677
B136: 01.07.1993 | C136: 10.61666667
B137: 01.08.1993 | C137: 10.97849462
B138: 01.09.1993 | C138: 12.52688172
B139: 01.10.1993 | C139: 7.014814815
B140: 01.11.1993 | C140: 2.908602151
B141: 01.12.1993 | C141: -1.938888889
B142: 01.01.1994 | C142: -2.845878136
B143: 01.02.1994 | C143: -2.659498208
B144: 01.03.1994 | C144: -4.845238095
B145: 01.04.1994 | C145: 2.421146953
B146: 01.05.1994 | C146: 1.011111111
B147: 01.06.1994 | C147: 6.614695341
B148: 01.07.1994 | C148: 10.83333333
B149: 01.08.1994 | C149: 14.52222222
B150: 01.09.1994 | C150: 13.40501792
B151: 01.10.1994 | C151: 8.142592593
B152: 01.11.1994 | C152: 4.141577061
B153: 01.12.1994 | C153: 4.557407407
B154: 01.01.1995 | C154: -0.894265233
B155: 01.02.1995 | C155: -5.860215054
B156: 01.03.1995 | C156: -1.420634921
B157: 01.04.1995 | C157: -2.906810036
B158: 01.05.1995 | C158: 2.974074074
B159: 01.06.1995 | C159: 6.614814815
B160: 01.07.1995 | C160: 8.709259259
B161: 01.08.1995 | C161: 14.30286738
B162: 01.09.1995 | C162: 11.44623656
B163: 01.10.1995 | C163: 6.107407407
B164: 01.11.1995 | C164: 7.661290323
B165: 01.12.1995 | C165: -0.4291187739
B166: 01.01.1996 | C166: -3.765232975
B167: 01.02.1996 | C167: -2.883512545
B168: 01.03.1996 | C168: -6.170498084
B169: 01.04.1996 | C169: -2.892473118
B170: 01.05.1996 | C170: 2.748015873
B171: 01.06.1996 | C171: 6.163082437
B172: 01.07.1996 | C172: 11.20185185
B173: 01.08.1996 | C173: 11.39784946
B174: 01.09.1996 | C174: 11.04074074
B175: 01.10.1996 | C175: 6.122222222
B176: 01.11.1996 | C176: 4.598566308
B177: 01.12.1996 | C177: -0.4648148148
B178: 01.01.1997 | C178: -3.399641577
B179: 01.02.1997 | C179: -2.449820789
B180: 01.03.1997 | C180: -1.263888889
B181: 01.04.1997 | C181: 2.349462366
B182: 01.05.1997 | C182: 2.009259259
B183: 01.06.1997 | C183: 6.792114695
B184: 01.08.1997 | C184: 10.51686508
B185: 01.09.1997 | C185: 13.12544803
B186: 01.10.1997 | C186: 11.06296296
B187: 01.11.1997 | C187: 4.85125448
B188: 01.12.1997 | C188: 0.212962963
B189: 01.01.1998 | C189: -2.67562724
B190: 01.02.1998 | C190: -3.668458781
B191: 01.03.1998 | C191: 0.7876984127
B192: 01.04.1998 | C192: -0.6899641577
B193: 01.05.1998 | C193: 0.6314814815
B194: 01.06.1998 | C194: 6.903225806
B195: 01.07.1998 | C195: 10.90740741
B196: 01.08.1998 | C196: 13.22580645
B197: 01.09.1998 | C197: 13.34444444
B198: 01.10.1998 | C198: 7.931481481
B199: 01.11.1998 | C199: 3.860215054
B200: 01.12.1998 | C200: -2.255555556
B201: 01.01.1999 | C201: -2.523297491
... 239 more rows
